fUSD/lending_fUSD_20250311
["ID","MTS","AMOUNT","RATE_DAILY","PERIOD"]
[355877074,1741671044200,-954.906264,9.999e-05,2]
[355877076,1741671044210,-954.906264,9.999e-05,2]
[355877078,1741671044220,-191.88,9.999e-05,2]
[355877080,1741671044230,-191.88,9.999e-05,2]
[355877082,1741671044241,-954.906264,9.999e-05,2]
[355877084,1741671044250,-954.906264,9.999e-05,2]
[355877086,1741671044260,-191.88,9.999e-05,2]
[355877088,1741671044272,-191.88,9.999e-05,2]
[355877090,1741671044283,-151.0,9.999e-05,2]
[355877092,1741671044294,-151.0,9.999e-05,2]
[355877094,1741671044304,-151.0,9.999e-05,2]
[355877096,1741671044315,-151.0,9.999e-05,2]
[355877098,1741671044325,-151.0,9.999e-05,2]
[355877100,1741671044336,-151.0,9.999e-05,2]
[355877102,1741671044346,-151.0,9.999e-05,2]
[355877104,1741671044356,-151.0,9.999e-05,2]
[355877106,1741671044366,-291.723435,9.999e-05,2]
[355877108,1741671044375,-151.0,9.999e-05,2]
[355877110,1741671044388,-151.0,9.999e-05,2]
[355877112,1741671044400,-151.0,9.999e-05,2]
[355877114,1741671044410,-151.0,9.999e-05,2]
[355877116,1741671044420,-151.0,9.999e-05,2]
[355877118,1741671044429,-151.0,9.999e-05,2]
[355877120,1741671044438,-205.504283,9.999e-05,2]
[355877122,1741671044448,-205.504283,9.999e-05,2]
[355877124,1741671044457,-205.504283,9.999e-05,2]
[355877126,1741671044467,-205.504283,9.999e-05,2]
[355877128,1741671044476,-151.0,9.999e-05,2]
[355877130,1741671044486,-151.0,9.999e-05,2]
[355877132,1741671044495,-151.0,9.999e-05,2]
[355877134,1741671044503,-151.0,9.999e-05,2]
[355877135,1741671044513,-151.0,9.999e-05,2]
[355877137,1741671044522,-151.0,9.999e-05,2]
[355877139,1741671044532,-151.0,9.999e-05,2]
[355877141,1741671044541,-151.0,9.999e-05,2]
[355877143,1741671044551,-243.541234,9.999e-05,2]
[355877145,1741671044560,-243.541234,9.999e-05,2]
[355877147,1741671044569,-243.541234,9.999e-05,2]
[355877149,1741671044579,-243.541234,9.999e-05,2]
[355877151,1741671044589,-260.351511,9.999e-05,2]
[355877153,1741671044598,-260.351511,9.999e-05,2]
[355877155,1741671044608,-260.351511,9.999e-05,2]
[355877157,1741671044617,-260.351511,9.999e-05,2]
[355877159,1741671044628,-659.711397,9.999e-05,2]
[355877161,1741671044637,-659.711397,9.999e-05,2]
[355877163,1741671044646,-659.711397,9.999e-05,2]
[355877165,1741671044656,-659.711397,9.999e-05,2]
[355877167,1741671044666,-150.0,9.999e-05,2]
[355877169,1741671044676,-150.0,9.999e-05,2]
[355877171,1741671044685,-201.5091411,9.999e-05,2]
[355877173,1741671044694,-347.825056,9.999e-05,2]
[355877175,1741671044703,-347.825056,9.999e-05,2]
[355877177,1741671044712,-151.0,9.999e-05,2]
[355877179,1741671044721,-1628.520993,9.999e-05,2]
[355877181,1741671044731,-1628.520993,9.999e-05,2]
[355877183,1741671044740,-1628.520993,9.999e-05,2]
[355877185,1741671044749,-1628.520993,9.999e-05,2]
[355877187,1741671044758,-395.537092,9.999e-05,2]
[355877189,1741671044768,-395.537092,9.999e-05,2]
[355877191,1741671044777,-395.537092,9.999e-05,2]
[355877193,1741671044786,-395.537092,9.999e-05,2]
[355877195,1741671044796,-2510.344562,9.999e-05,2]
[355877197,1741671044805,-2510.344562,9.999e-05,2]
[355877199,1741671044814,-2510.344562,9.999e-05,2]
[355877201,1741671044824,-2510.344562,9.999e-05,2]
[355877203,1741671044834,-151.0,9.999e-05,2]
[355877205,1741671044844,-151.0,9.999e-05,2]
[355877207,1741671044853,-10000.0,9.999e-05,2]
[355877209,1741671044863,-10000.0,9.999e-05,2]
[355877211,1741671044872,-187.850565,9.999e-05,2]
[355877213,1741671044882,-187.850565,9.999e-05,2]
[355877215,1741671044892,-151.0,9.999e-05,2]
[355877217,1741671044906,-187.850565,9.999e-05,2]
[355877219,1741671044916,-187.850565,9.999e-05,2]
[355877221,1741671044926,-151.0,9.999e-05,2]
[355877223,1741671044936,-151.0,9.999e-05,2]
[355877225,1741671044946,-151.0,9.999e-05,2]
[355877227,1741671044956,-151.159702,9.999e-05,2]
[355877229,1741671044965,-151.0,9.999e-05,2]
[355877231,1741671044975,-151.0,9.999e-05,2]
[355877233,1741671044985,-249.46907,9.999e-05,2]
[355877235,1741671044995,-249.46907,9.999e-05,2]
[355877237,1741671045004,-1637.1,9.999e-05,2]
[355877238,1741671045013,-151.0,9.999e-05,2]
[355877240,1741671045023,-151.0,9.999e-05,2]
[355877242,1741671045032,-213.811638,9.999e-05,2]
[355877244,1741671045042,-151.0,9.999e-05,2]
[355877247,1741671045052,-151.0,9.999e-05,2]
[355877248,1741671045062,-213.811638,9.999e-05,2]
[355877251,1741671045072,-151.0,9.999e-05,2]
[355877252,1741671045081,-151.0,9.999e-05,2]
[355877255,1741671045091,-158.52187348,9.999e-05,2]
[355877257,1741671045101,-500.0,9.999e-05,2]
[355877259,1741671045111,-732.11108591,9.999e-05,2]
[355877261,1741671045120,-500.0,9.999e-05,2]
[355877263,1741671045130,-500.0,9.999e-05,2]
[355877265,1741671045139,-979.36767345,9.999e-05,2]
[355877267,1741671045150,-151.0,9.999e-05,2]
[355877268,1741671045159,-324.673094,9.999e-05,2]
[355877271,1741671045169,-151.0,9.999e-05,2]
[355877272,1741671045178,-324.673094,9.999e-05,2]
[355877274,1741671045188,-611.324163,9.999e-05,2]
[355877277,1741671045198,-611.324163,9.999e-05,2]
[355877278,1741671045207,-324.673094,9.999e-05,2]
[355877280,1741671045216,-151.0,9.999e-05,2]
[355877282,1741671045226,-324.673094,9.999e-05,2]
[355877284,1741671045235,-151.0,9.999e-05,2]
[355877286,1741671045245,-611.324163,9.999e-05,2]
[355877288,1741671045254,-611.324163,9.999e-05,2]
[355877290,1741671045263,-431.168924,9.999e-05,2]
[355877292,1741671045273,-431.168924,9.999e-05,2]
[355877294,1741671045282,-297.550939,9.999e-05,2]
[355877296,1741671045291,-431.168924,9.999e-05,2]
[355877298,1741671045301,-431.168924,9.999e-05,2]
[355877300,1741671045311,-206.675008,9.999e-05,2]
[355877302,1741671045320,-206.675008,9.999e-05,2]
[355877304,1741671045330,-206.675008,9.999e-05,2]
[355877306,1741671045340,-151.0,9.999e-05,2]
[355877308,1741671045350,-206.675008,9.999e-05,2]
[355877310,1741671045359,-999.0,9.999e-05,2]
[355877312,1741671045368,-999.0,9.999e-05,2]
[355877314,1741671045378,-999.0,9.999e-05,2]
[355877316,1741671045387,-999.0,9.999e-05,2]
[355877318,1741671045400,-999.0,9.999e-05,2]
[355877320,1741671045409,-999.0,9.999e-05,2]
[355877323,1741671045419,-999.0,9.999e-05,2]
[355877325,1741671045428,-999.0,9.999e-05,2]
[355877327,1741671045438,-999.0,9.999e-05,2]
[355877328,1741671045448,-999.0,9.999e-05,2]
[355877330,1741671045458,-999.0,9.999e-05,2]
[355877332,1741671045467,-999.0,9.999e-05,2]
[355877335,1741671045477,-999.0,9.999e-05,2]
[355877339,1741671045486,-999.0,9.999e-05,2]
[355877341,1741671045496,-999.0,9.999e-05,2]
[355877344,1741671045506,-999.0,9.999e-05,2]
[355877346,1741671045516,-999.0,9.999e-05,2]
[355877348,1741671045525,-999.0,9.999e-05,2]
[355877350,1741671045535,-999.0,9.999e-05,2]
[355877352,1741671045545,-1014.00250263,9.999e-05,2]
[355877354,1741671045555,-500.0,9.999e-05,2]
[355877356,1741671045565,-971.19434983,9.999e-05,2]
[355877358,1741671045575,-150.0,9.999e-05,2]
[355877360,1741671045584,-500.0,9.999e-05,2]
[355877362,1741671045594,-500.0,9.999e-05,2]
[355877364,1741671045603,-500.0,9.999e-05,2]
[355877366,1741671045613,-500.0,9.999e-05,2]
[355877368,1741671045623,-500.0,9.999e-05,2]
[355877370,1741671045632,-646.43794851,9.999e-05,2]
[355877372,1741671045642,-150.0,9.999e-05,2]
[355877374,1741671045652,-151.0,9.999e-05,2]
[355877376,1741671045662,-151.0,9.999e-05,2]
[355877378,1741671045672,-151.0,9.999e-05,2]
[355877380,1741671045681,-153.038542,9.999e-05,2]
[355877382,1741671045691,-171.814984,9.999e-05,2]
[355877384,1741671045701,-171.814984,9.999e-05,2]
[355877385,1741671045710,-654.0,0.0001,2]
[355877386,1741671045721,-5641089.94187981,0.0001,2]
[355877387,1741671045730,-603423.162074,0.0001,2]
[355877640,1741671048568,1000.0,8.555e-05,2]
[355877675,1741671048943,-606.34355227,9.624e-05,2]
[355877689,1741671049075,-393.65644773,9.624e-05,2]
[355877691,1741671049085,-915.33362471,9.996e-05,2]
[355877693,1741671049095,-500.0,9.997e-05,2]
[355877695,1741671049105,-263.47535762,9.997e-05,2]
[355877697,1741671049116,-500.0,9.997e-05,2]
[355877699,1741671049126,-315.11527798,9.997e-05,2]
[355877748,1741671049592,-500.0,9.997e-05,2]
[355877754,1741671049645,-500.0,9.997e-05,2]
[355877756,1741671049655,-500.0,9.997e-05,2]
[355877758,1741671049665,-500.0,9.997e-05,2]
[355877760,1741671049675,-4745.20929196,0.0001,2]
[355877807,1741671050284,-472.65644773,0.0001,2]
[355877809,1741671050296,-13589.8,0.0001,2]
[355877964,1741671051958,-500.0,9.997e-05,2]
[355877966,1741671051970,-500.0,9.997e-05,2]
[355877968,1741671051980,-500.0,9.997e-05,2]
[355877970,1741671051990,-241.471881,9.999e-05,2]
[355877972,1741671052002,-241.471881,9.999e-05,2]
[355877974,1741671052011,-14071.82883354,0.0001,2]
[355877982,1741671052079,-1068.40519484,0.0001,2]
[355877987,1741671052119,-680.85182665,0.0001,2]
[355877989,1741671052131,-264.73110333,0.0001,2]
[355877991,1741671052142,-5307.98654794,0.0001,2]
[355877997,1741671052191,-2286.33237956,0.0001,2]
[355878003,1741671052242,-4997.7066997,0.0001,2]
[355878289,1741671563135,1602.22,8.219e-05,2]
[355878415,1741672052984,1392.55,0.00011095,22]
[355878416,1741672053442,1392.55,0.00011643,32]
[355878417,1741672053698,1392.55,0.00012191,42]
[355878418,1741672053965,1392.55,0.00012739,52]
[355878419,1741672054229,1392.55,0.00013287,62]
[355878420,1741672054476,1392.55,0.00013835,72]
[355878421,1741672054732,1392.55,0.00014383,82]
[355878422,1741672054961,1392.55,0.00014931,92]
[355878423,1741672055213,1392.55,0.00015479,102]
[355878424,1741672055471,1392.55,0.00016027,112]
[355878425,1741672055791,1392.55,0.00016575,120]
[355878426,1741672056305,1392.55,0.00017123,120]
[355878427,1741672056418,1392.55,0.0001767,120]
[355878428,1741672056587,1392.55,0.00018218,120]
[355878429,1741672056778,1392.55,0.00018766,120]
[355878430,1741672057037,1392.55,0.00019314,120]
[355878431,1741672057268,1392.55,0.00019862,120]
[355878654,1741672232355,-426.36644233,8.982e-05,2]
[355878655,1741672232400,-573.63355767,8.982e-05,2]
[355878656,1741672232411,-127.48144233,9.003e-05,2]
[355878658,1741672232459,-29.33855767,9.003e-05,2]
[355878660,1741672232469,-800.0,9.088e-05,2]
[355878662,1741672232482,-166.69,9.112e-05,2]
[355878664,1741672232491,-250.0,9.181e-05,2]
[355878666,1741672232501,-172.76,9.266e-05,2]
[355878668,1741672232510,-156.82,9.273e-05,2]
[355878670,1741672232520,-156.82,9.543e-05,2]
[355878672,1741672232529,-150.0,9.589e-05,2]
[355878674,1741672232539,-999.37,9.608e-05,2]
[355878676,1741672232548,-300.09,9.652e-05,2]
[355878678,1741672232557,-441.72,9.873e-05,2]
[355878680,1741672232572,-441.72,9.873e-05,2]
[355878682,1741672232582,-300.0,9.879e-05,2]
[355878684,1741672232591,-685.815557,9.88e-05,2]
[355878686,1741672232601,-643.39,9.88e-05,2]
[355878688,1741672232611,-150.99,9.88e-05,2]
[355878690,1741672232620,-3019.04,9.88e-05,2]
[355878692,1741672232630,-7400.41,9.88e-05,2]
[355878694,1741672232639,-897.407,9.898e-05,2]
[355878696,1741672232649,-150.0,9.899e-05,2]
[355878698,1741672232658,-38538.52754672,9.9e-05,2]
[355878700,1741672232668,-500.0,9.925e-05,2]
[355878702,1741672232677,-500.0,9.925e-05,2]
[355878704,1741672232686,-500.0,9.925e-05,2]
[355878706,1741672232696,-315.58892472,9.925e-05,2]
[355878708,1741672232705,-500.0,9.997e-05,2]
[355878710,1741672232715,-620.58069459,9.997e-05,2]
[355878712,1741672232724,-184.43275033,9.997e-05,2]
[355878714,1741672232736,-184.40648621,9.997e-05,2]
[355878716,1741672232746,-201.531394,9.997e-05,2]
[355878717,1741672232756,-201.531394,9.997e-05,2]
[355878718,1741672232766,-177.399434,9.997e-05,2]
[355878719,1741672232776,-151.0,9.997e-05,2]
[355878720,1741672232786,-173.859155,9.997e-05,2]
[355878721,1741672232796,-173.859155,9.997e-05,2]
[355878722,1741672232806,-3476.2335407,9.997e-05,2]
[355878723,1741672232817,-201.531394,9.998e-05,2]
[355878724,1741672232827,-201.531394,9.998e-05,2]
[355878725,1741672232837,-201.531394,9.998e-05,2]
[355878726,1741672232847,-201.531394,9.998e-05,2]
[355878727,1741672232857,-177.399434,9.998e-05,2]
[355878728,1741672232867,-177.399434,9.998e-05,2]
[355878729,1741672232877,-151.0,9.998e-05,2]
[355878730,1741672232888,-151.944223,9.998e-05,2]
[355878731,1741672232898,-173.859155,9.998e-05,2]
[355878732,1741672232907,-173.859155,9.998e-05,2]
[355878733,1741672232917,-173.859155,9.998e-05,2]
[355878734,1741672232927,-173.859155,9.998e-05,2]
[355878735,1741672232938,-201.531394,9.999e-05,2]
[355878736,1741672232947,-201.531394,9.999e-05,2]
[355878737,1741672232957,-177.399434,9.999e-05,2]
[355878738,1741672232967,-173.859155,9.999e-05,2]
[355878739,1741672232979,-173.859155,9.999e-05,2]
[355878740,1741672232989,-1392.55,9.999e-05,2]
[355878741,1741672232999,-538.46,9.999e-05,2]
[355878742,1741672233009,-690.0,0.0001,2]
[355878743,1741672233019,-222.88085571,0.0001,2]
[355878744,1741672233030,-32875.39562404,0.0001,2]
[355878745,1741672233044,-27617.06360003,0.0001,2]
[355878746,1741672233057,-255.97559429,0.0001,2]
[355878747,1741672233100,-613.32961624,0.0001,2]
[355878748,1741672233122,-627.58285509,0.0001,2]
[355878749,1741672233203,-1527.45052351,0.0001,2]
[355878750,1741672233220,-952.32999,0.0001,2]
[355878751,1741672238038,-518.0,0.0001,2]
[355878752,1741672238049,-1120.65078962,0.0001,2]
[355878753,1741672238061,-2292.245,0.0001,2]
[355878754,1741672238073,-444.65525381,0.0001,2]
[355878755,1741672238090,-953.71354468,0.0001,2]
[355878756,1741672238102,-500.0,0.0001,2]
[355878757,1741672238122,-33194.24571153,0.0001,2]
[355878758,1741672238225,-9728.13633588,0.0001,2]
[355878759,1741672238333,-16160.95515256,0.0001,2]
[355878768,1741672240329,-29087.57470379,0.0001,2]
[355878769,1741672240338,-255.06281879,0.0001,2]
[355878770,1741672240349,-6647.65420439,0.0001,2]
[355878771,1741672240375,-974.55526154,0.0001,2]
[355878772,1741672240464,-1776.80682186,0.0001,2]
[355878773,1741672240476,-2790.0,0.0001,2]
[355878785,1741672243433,-569.04132258,0.0001,2]
[355878898,1741672244680,-451.22072221,0.0001,2]
[355879016,1741672246063,-6148.30808471,0.0001,2]
[355879074,1741672246636,-316.68209897,0.0001,2]
[355879137,1741672492827,1335.81979129,0.000125,120]
[355879138,1741672636572,1635.26,8.219e-05,2]
[355879139,1741672836708,2000.0,0.000165,60]
[355879260,1741673432305,-804.79,8.957e-05,2]
[355879261,1741673432345,-23095.21,8.957e-05,2]
[355879262,1741673432355,-1000.0,8.996e-05,2]
[355879263,1741673432366,-550.0,9e-05,2]
[355879264,1741673432376,-2000.0,9.064e-05,2]
[355879265,1741673432386,-211.39,9.099e-05,2]
[355879266,1741673432396,-178.01,9.12e-05,2]
[355879267,1741673432405,-473.35,9.135e-05,2]
[355879268,1741673432415,-268.32,9.456e-05,2]
[355879269,1741673432425,-150.0,9.459e-05,2]
[355879270,1741673432435,-441.8,9.46e-05,2]
[355879271,1741673432444,-150.0,9.46e-05,2]
[355879272,1741673432454,-778.74,9.46e-05,2]
[355879273,1741673432464,-778.74,9.46e-05,2]
[355879274,1741673432473,-441.8,9.46e-05,2]
[355879275,1741673432483,-441.8,9.46e-05,2]
[355879276,1741673432492,-778.74,9.46e-05,2]
[355879277,1741673432502,-599.14,9.46e-05,2]
[355879278,1741673432512,-778.74,9.46e-05,2]
[355879279,1741673432521,-546.07,9.46e-05,2]
[355879280,1741673432533,-778.74,9.46e-05,2]
[355879281,1741673432549,-984.13,9.46e-05,2]
[355879282,1741673432559,-300.0,9.552e-05,2]
[355879283,1741673432568,-3696.5,9.552e-05,2]
[355879284,1741673432578,-150.0,9.578e-05,2]
[355879285,1741673432589,-878.47,9.578e-05,2]
[355879286,1741673432598,-344.75,9.578e-05,2]
[355879287,1741673432609,-250.0,9.64e-05,2]
[355879288,1741673432619,-211.39,9.645e-05,2]
[355879289,1741673432628,-3002.4425,9.9e-05,2]
[355879290,1741673432637,-4149.4778,9.9e-05,2]
[355879291,1741673432647,-12719.846,9.9e-05,2]
[355879293,1741673432656,-10958.8991,9.9e-05,2]
[355879295,1741673432666,-1172.7503,9.9e-05,2]
[355879297,1741673432676,-580.3458,9.9e-05,2]
[355879299,1741673432685,-5509.2963,9.9e-05,2]
[355879301,1741673432695,-41077.159,9.9e-05,2]
[355879303,1741673432704,-405.1928,9.9e-05,2]
[355879305,1741673432714,-2500.0,9.9e-05,2]
[355879307,1741673432724,-717.925,9.917e-05,2]
[355879309,1741673432733,-168.57926594,9.973e-05,2]
[355879311,1741673432743,-200.0,9.99e-05,2]
[355879313,1741673432753,-200.0,9.99e-05,2]
[355879315,1741673432762,-200.0,9.99e-05,2]
[355879317,1741673432772,-168.0,9.99e-05,2]
[355879319,1741673432781,-168.0,9.99e-05,2]
[355879321,1741673432790,-170.17,9.99e-05,2]
[355879322,1741673432800,-1850.8657005,9.997e-05,2]
[355879323,1741673432809,-351.9055437,9.997e-05,2]
[355879324,1741673432819,-6208.3848611,9.997e-05,2]
[355879325,1741673432829,-8951.49569364,9.998e-05,2]
[355879326,1741673432838,-500.0,9.999e-05,2]
[355879327,1741673432848,-1568.89,9.999e-05,2]
[355879328,1741673432857,-538.53,9.999e-05,2]
[355879330,1741673432868,-525.0,0.0001,2]
[355879331,1741673432878,-222.88085571,0.0001,2]
[355879332,1741673432888,-282927.70294875,0.0001,2]
[355879333,1741673433013,-815.10331798,0.0001,2]
[355879348,1741673438721,-971.04759,0.0001,2]
[355879507,1741673440463,-259.84395001,0.0001,2]
[355879510,1741673440475,-426.31557006,0.0001,2]
[355879523,1741673440603,-6718.56,0.0001,2]
[355879539,1741673440745,-1435.7055609,0.0001,2]
[355879793,1741673443354,-4478.93188015,0.0001,2]
[355879796,1741673443381,-279.09938607,0.0001,2]
[355880325,1741673687086,1666.5,8.219e-05,2]
[355880326,1741673707951,156.0,8.219e-05,3]
[355880327,1741673862459,500.0,0.00011095,22]
[355880328,1741673862653,500.0,0.00011643,32]
[355880329,1741673862946,500.0,0.00012191,42]
[355880330,1741673863204,500.0,0.00012739,52]
[355880331,1741673864146,500.0,0.00013287,62]
[355880332,1741673864316,500.0,0.00013835,72]
[355880333,1741673864453,500.0,0.00014383,82]
[355880334,1741673864577,500.0,0.00014931,92]
[355880335,1741673864813,500.0,0.00015479,102]
[355880336,1741673865114,500.0,0.00016027,112]
[355880337,1741673865333,500.0,0.00016575,120]
[355880338,1741673865644,500.0,0.00017123,120]
[355880339,1741673865884,500.0,0.0001767,120]
[355880340,1741673866146,500.0,0.00018218,120]
[355880341,1741673866419,500.0,0.00018766,120]
[355880342,1741673866730,500.0,0.00019314,120]
[355880343,1741673867151,355.48392681,0.00019862,120]
[355880344,1741674007070,156.0,8.219e-05,3]
[355880345,1741674307298,156.0,8.219e-05,3]
[355880351,1741674451931,167.24,8.857e-05,2]
[355880356,1741674512367,1000.0,8.857e-05,2]
[355880367,1741674607306,156.0,8.219e-05,3]
[355880368,1741674618596,250.0,8.855e-05,2]
[355880379,1741674632446,-550.0,9e-05,2]
[355880380,1741674632455,-172.26,9.248e-05,2]
[355880381,1741674632464,-178.01,9.392e-05,2]
[355880382,1741674632473,-162.41,9.399e-05,2]
[355880383,1741674632483,-6035.326716,9.408e-05,2]
[355880384,1741674632492,-162.41,9.455e-05,2]
[355880385,1741674632502,-162.41,9.512e-05,2]
[355880386,1741674632511,-150.0,9.519e-05,2]
[355880387,1741674632521,-778.74,9.52e-05,2]
[355880388,1741674632530,-150.0,9.52e-05,2]
[355880389,1741674632539,-778.74,9.52e-05,2]
[355880390,1741674632548,-778.74,9.52e-05,2]
[355880391,1741674632558,-342.95,9.52e-05,2]
[355880392,1741674632567,-778.74,9.52e-05,2]
[355880393,1741674632576,-778.74,9.52e-05,2]
[355880394,1741674632586,-778.74,9.52e-05,2]
[355880395,1741674632595,-776.66,9.52e-05,2]
[355880396,1741674632605,-778.48,9.52e-05,2]
[355880397,1741674632614,-162.41,9.568e-05,2]
[355880398,1741674632624,-778.74,9.57e-05,2]
[355880399,1741674632633,-150.99,9.57e-05,2]
[355880400,1741674632643,-150.0,9.578e-05,2]
[355880401,1741674632652,-440.94,9.578e-05,2]
[355880402,1741674632662,-989.55,9.578e-05,2]
[355880403,1741674632672,-345.05,9.578e-05,2]
[355880404,1741674632682,-155.9,9.578e-05,2]
[355880405,1741674632691,-345.05,9.578e-05,2]
[355880406,1741674632701,-150.0,9.578e-05,2]
[355880407,1741674632712,-440.94,9.578e-05,2]
[355880408,1741674632721,-440.94,9.578e-05,2]
[355880409,1741674632731,-150.0,9.578e-05,2]
[355880410,1741674632741,-345.05,9.578e-05,2]
[355880411,1741674632752,-345.05,9.578e-05,2]
[355880412,1741674632762,-440.94,9.578e-05,2]
[355880413,1741674632772,-440.94,9.578e-05,2]
[355880414,1741674632782,-150.0,9.578e-05,2]
[355880415,1741674632791,-880.62,9.578e-05,2]
[355880416,1741674632801,-150.0,9.578e-05,2]
[355880417,1741674632811,-150.0,9.578e-05,2]
[355880418,1741674632821,-162.41,9.625e-05,2]
[355880419,1741674632831,-282.71,9.63e-05,2]
[355880420,1741674632840,-944.94,9.658e-05,2]
[355880421,1741674632850,-162.41,9.681e-05,2]
[355880422,1741674632859,-162.41,9.737e-05,2]
[355880423,1741674632868,-162.41,9.794e-05,2]
[355880424,1741674632877,-162.41,9.85e-05,2]
[355880425,1741674632888,-5358.5342,9.9e-05,2]
[355880426,1741674632903,-957.6183,9.9e-05,2]
[355880427,1741674632913,-3461.8882,9.9e-05,2]
[355880428,1741674632924,-14560.82943313,9.9e-05,2]
[355880434,1741674633057,-48334.16566687,9.9e-05,2]
[355880436,1741674633068,-162.41,9.906e-05,2]
[355880438,1741674633077,-162.41,9.963e-05,2]
[355880439,1741674633087,-1000.0,9.964e-05,2]
[355880440,1741674633097,-5368.0,9.973e-05,2]
[355880441,1741674633107,-500.0,9.973e-05,2]
[355880442,1741674633118,-504.29270969,9.973e-05,2]
[355880443,1741674633128,-160.29214236,9.973e-05,2]
[355880444,1741674633138,-456.41860303,9.973e-05,2]
[355880445,1741674633148,-504.49096799,9.973e-05,2]
[355880446,1741674633158,-574.34,9.98e-05,2]
[355880447,1741674633167,-468.240234,9.994e-05,2]
[355880448,1741674633177,-515.7294548,9.994e-05,2]
[355880449,1741674633187,-846.7500264,9.994e-05,2]
[355880450,1741674633197,-918.4994325,9.994e-05,2]
[355880451,1741674633207,-1381.92971855,9.999e-05,3]
[355880452,1741674633216,-1569.61,9.999e-05,2]
[355880453,1741674633225,-500.0,9.999e-05,2]
[355880454,1741674633235,-500.0,9.999e-05,2]
[355880455,1741674633244,-500.0,9.999e-05,2]
[355880456,1741674633254,-500.0,9.999e-05,2]
[355880457,1741674633264,-500.0,9.999e-05,2]
[355880458,1741674633273,-500.0,9.999e-05,2]
[355880459,1741674633283,-500.0,9.999e-05,2]
[355880460,1741674633293,-500.0,9.999e-05,2]
[355880461,1741674633302,-500.0,9.999e-05,2]
[355880462,1741674633311,-500.0,9.999e-05,2]
[355880463,1741674633321,-500.0,9.999e-05,2]
[355880464,1741674633330,-500.0,9.999e-05,2]
[355880465,1741674633340,-500.0,9.999e-05,2]
[355880466,1741674633349,-500.0,9.999e-05,2]
[355880467,1741674633359,-500.0,9.999e-05,2]
[355880468,1741674633370,-500.0,9.999e-05,2]
[355880469,1741674633381,-500.0,9.999e-05,2]
[355880470,1741674633391,-500.0,9.999e-05,2]
[355880471,1741674633401,-500.0,9.999e-05,2]
[355880472,1741674633413,-500.0,9.999e-05,2]
[355880473,1741674633425,-500.0,9.999e-05,2]
[355880474,1741674633434,-500.0,9.999e-05,2]
[355880475,1741674633445,-386.15815931,9.999e-05,2]
[355880476,1741674633455,-420.50016037,0.0001,2]
[355880477,1741674633465,-261891.87359059,0.0001,2]
[355880482,1741674638353,-414.4624245,9.994e-05,2]
[355880483,1741674638362,-471.70693824,0.0001,2]
[355880484,1741674638442,-1704.75408117,0.0001,2]
[355880485,1741674638529,-6107.54563059,0.0001,2]
[355880486,1741674638660,-602.7567069,0.0001,2]
[355880491,1741674640456,-168.5051759,0.0001,2]
[355880492,1741674640468,-9572.29658395,0.0001,2]
[355880493,1741674640516,-1798.16371832,0.0001,2]
[355880494,1741674640528,-3594.43905136,0.0001,2]
[355880495,1741674640575,-455.41274895,0.0001,2]
[355880496,1741674640641,-1302.41101861,0.0001,2]
[355880497,1741674640653,-1431.37412263,0.0001,2]
[355880498,1741674640668,-2004.69357214,0.0001,2]
[355880499,1741674640681,-731.521973,0.0001,2]
[355880500,1741674640692,-969.93441918,0.0001,2]
[355880501,1741674640717,-853.74179818,0.0001,2]
[355880502,1741674640728,-702.47844533,0.0001,2]
[355880503,1741674640740,-3249.95340702,0.0001,2]
[355880504,1741674640751,-2256.50655973,0.0001,2]
[355880505,1741674640763,-1399.79399091,0.0001,2]
[355880506,1741674640827,-421.52023193,0.0001,2]
[355880507,1741674640838,-3425.67114238,0.0001,2]
[355880514,1741674643403,-562.94029799,0.0001,2]
[355880515,1741674643415,-1635.41090626,0.0001,2]
[355880516,1741674643426,-284.74638608,0.0001,2]
[355880517,1741674643437,-447.27153168,0.0001,2]